{"text_format":"1","workbook":"xlsx","n_sheets":3,"sheets":["Лист1","Лист2","Лист3"],"not_rendered":{"charts":0,"images":0,"macros":1,"external_links":0,"defined_names":0,"comments":0,"pivot_tables":0},"unopened":[],"bounds":{"document_bytes":16777216,"sheet_cells":100000,"rows_first":2000,"rows_last":500,"rows_between":2000,"halvings":0,"cell_chars":16384,"cell_head_chars":4096},"cells_cut":0,"cells_raw":0,"read":"whole","date_system":"1900"}

{"sheet":"Лист1","index":0,"n_rows":30,"n_cols":21,"rows_kept":30,"cut":false,"hidden":false,"merged":[]}
[]
[]
[null,null,null,null,null,null,null,"Здесь расчет идет правильно",null,null,null,null,null,null,null,null,null,null,"А здесь уже считаются не все числа"]
[]
[]
[null,null,null,null,null,null,null,"rtsdt dftu stnvx",null,{"$f":"SUM(J8:J30)","v":11.7},null,null,null,null,null,null,null,null,"rtsdt dftu stnvx",null,{"$f":"SUM(IFERROR(--SUBSTITUTE(LEFTB(SUBSTITUTE(MID(C8:E30,SEARCH(H6,C8:E30)+LEN(H6),99),\",\",REPT(\" \",99)),99),\"0\",\"0,\"),))","v":11.1}]
[null,null,null,null,null,null,null,null,null,null,null,null,null,null,null,null,null,null,null,null,{"$f":"getsum(N8:P30,S6)","v":11.7}]
[null,null,"rtsdt dftu stnvx06-новость,"," "," "," ",null,{"$f":"IF(ISERROR(SEARCH($H$6,C8&D8&E8)),0,MID(C8&D8&E8,SEARCH($H$6,C8&D8&E8),LEN($H$6)+2))","v":"rtsdt dftu stnvx06"},null,{"$f":"IFERROR(IFERROR(--IF(ISERR(SEARCH($H$6,H8)),0,IF(MID(H8,SEARCH($H$6,H8)+LEN($H$6),1)=\"0\",0&\",\",\"\")&--LEFTB(SUBSTITUTE(MID(H8,SEARCH($H$6,H8)+LEN($H$6),15),\",\",REPT(\" \",15)),15)),--IF(ISERR(SEARCH($H$6,H8)),0,IF(MID(H8,SEARCH($H$6,H8)+LEN($H$6),1)=\"0\",0&\"-\",\"\")&--LEFTB(SUBSTITUTE(MID(H8,SEARCH($H$6,H8)+LEN($H$6),15),\"-\",REPT(\" \",15)),15))),0)","v":0.6},null,null,null,{"$f":"C8","v":"rtsdt dftu stnvx06-новость,"},{"$f":"D8","v":" "},{"$f":"E8","v":" "}," "]
[null,null," ","rty","r5323 4tyrt"," ",null,{"$f":"IF(ISERROR(SEARCH($H$6,C9&D9&E9)),0,MID(C9&D9&E9,SEARCH($H$6,C9&D9&E9),LEN($H$6)+2))","v":0},null,{"$f":"IFERROR(IFERROR(--IF(ISERR(SEARCH($H$6,H9)),0,IF(MID(H9,SEARCH($H$6,H9)+LEN($H$6),1)=\"0\",0&\",\",\"\")&--LEFTB(SUBSTITUTE(MID(H9,SEARCH($H$6,H9)+LEN($H$6),15),\",\",REPT(\" \",15)),15)),--IF(ISERR(SEARCH($H$6,H9)),0,IF(MID(H9,SEARCH($H$6,H9)+LEN($H$6),1)=\"0\",0&\"-\",\"\")&--LEFTB(SUBSTITUTE(MID(H9,SEARCH($H$6,H9)+LEN($H$6),15),\"-\",REPT(\" \",15)),15))),0)","v":0},null,null,null,{"$f":"C9","v":" "},{"$f":"D9","v":"rty"},{"$f":"E9","v":"r5323 4tyrt"}," "]
[null,null,"42-21"," "," "," ",null,0,null,0,null,null,null,"42-21"," "," "," "]
[null,null," ","rtsdt dftu stnvx02 "," "," ",null,"rtsdt dftu stnvx02",null,0.2,null,null,null," ","rtsdt dftu stnvx02 "," "," "]
[null,null," "," "," "," ",null,0,null,0,null,null,null," "," "," "," "]
[null,null,"ty546fdg345"," ","r43 ty5"," ",null,0,null,0,null,null,null,"ty546fdg345"," ","r43 ty5"," "]
[null,null," "," "," "," ",null,0,null,0,null,null,null," "," "," "," "]
[null,null," ","rtsdt dftu stnvx03, rtsdt dftu stnvxр12,"," "," ",null,"rtsdt dftu stnvx03",null,0.3,null,null,null," ","rtsdt dftu stnvx03, rtsdt dftu stnvxр12,"," "," "]
[null,null,435," "," "," ",null,0,null,0,null,null,null,435," "," "," "]
[null,null," "," "," ",null,null,0,null,0,null,null,null," "," "," "," "]
[null,null," "," ","4, rtsdt dftu stnvx06, 56546 ,rtsdt dftu stnvxр12,"," ",null,"rtsdt dftu stnvx06",null,0.6,null,null,null," "," ","4, rtsdt dftu stnvx06, 56546 ,rtsdt dftu stnvxр12,"," "]
[null,null,"rtsdt dftu stnvx8"," "," ",null,null,"rtsdt dftu stnvx8 ",null,8,null,null,null,"rtsdt dftu stnvx8"," "," "," "]
[null,null," ","rtsdt dftu stnvx2,rtsdt dftu stnvxр12,"," ",null,null,"rtsdt dftu stnvx2,",null,2,null,null,null," ","rtsdt dftu stnvx2,rtsdt dftu stnvxр12,"," "," "]
[null,null," "," "," ",null,null,0,null,0,null,null,null," "," "," "," "]
[null,null," ","544 ert rtsdt dftu stnvxtr112,"," ",null,null,"rtsdt dftu stnvxtr",null,0,null,null,null," ","544 ert rtsdt dftu stnvxtr112,"," "," "]
[null,null," "," "," ",null,null,0,null,0,null,null,null," "," "," "," "]
[null,null," "," "," ",null,null,0,null,0,null,null,null," "," "," "," "]
[null,null," "," "," ",null,null,0,null,0,null,null,null," "," "," "," "]
[null,null," "," "," ",null,null,0,null,0,null,null,null," "," "," "," "]
[null,null," "," "," ",null,null,0,null,0,null,null,null," "," "," "," "]
[null,null," "," "," ",null,null,0,null,0,null,null,null," "," "," "," "]
[null,null," "," "," ",null,null,0,null,0,null,null,null," "," "," "," "]
[null,null," "," "," ",null,null,0,null,0,null,null,null," "," "," "," "]

{"sheet":"Лист2","index":1,"n_rows":0,"n_cols":0,"rows_kept":0,"cut":false,"hidden":false,"merged":[]}

{"sheet":"Лист3","index":2,"n_rows":0,"n_cols":0,"rows_kept":0,"cut":false,"hidden":false,"merged":[]}